bitfinex-derivatives/quotes_SOLF0:USTF0_20220109
["timestamp","ask_amount","ask_price","bid_price","bid_amount"]
[1641715703164,15.04737791,140.85,140.81,27.66479]
[1641715703968,2.33698196,140.87,140.81,55.32958]
[1641715704365,6.33698196,140.87,140.81,55.32958]
[1641715704565,2.33698196,140.87,140.81,55.32958]
[1641715704765,17.38435987,140.86,140.81,55.32958]
[1641715704966,17.38435987,140.86,140.81,27.66479]
[1641715705668,15.04737791,140.85,140.81,27.66479]
[1641715706470,17.38435987,140.87,140.81,27.66479]
[1641715708070,19.04737791,140.86,140.81,27.66479]
[1641715708270,15.04737791,140.86,140.81,27.66479]
[1641715708770,2.33698196,140.85,140.81,27.66479]
[1641715709471,17.38435987,140.85,140.81,27.66479]
[1641715710474,2.33698196,140.85,140.81,27.66479]
[1641715713073,15.04737791,140.86,140.81,27.66479]
[1641715720382,15.04737791,140.87,140.81,27.66479]
[1641715723887,17.38435987,140.88,140.81,27.66479]
[1641715724086,17.38435987,140.88,140.81,62.86119]
[1641715726592,23.062965,140.88,140.81,62.86119]
[1641715727792,2.33698196,140.87,140.81,62.86119]
[1641715729293,17.38435987,140.87,140.81,62.86119]
[1641715730194,27.06373493,140.87,140.81,27.66479]
[1641715730396,27.06373493,140.87,140.79,61.84279]
[1641715730598,27.06373493,140.87,140.79,27.66479]
[1641715730599,5.68009676,140.85,140.79,27.66479]
[1641715731001,20.72747467,140.85,140.79,27.66479]
[1641715731198,5.68063253,140.83,140.79,27.66479]
[1641715732000,2.33698196,140.82,140.79,27.66479]
[1641715732900,2.33698196,140.82,140.77,33.7559]
[1641715733701,2.33698196,140.82,140.78,2.6892476]
[1641715735000,8.01830938,140.82,140.78,2.6892476]
[1641715735202,9.68251532,140.79,140.78,2.6892476]
[1641715735402,5.68251532,140.79,140.78,4.76e-05]
[1641715735605,9.68251532,140.79,140.73,15.04737791]
[1641715736304,37.34730532,140.79,140.73,15.04737791]
[1641715736501,37.34730532,140.79,140.71,27.66479]
[1641715736502,37.34730532,140.79,140.71,53.24147391]
[1641715737604,37.34730532,140.79,140.71,42.71216791]
[1641715737904,37.34730532,140.79,140.71,27.66479]
[1641715738404,33.34730532,140.79,140.71,27.66479]
[1641715739305,5.68251532,140.79,140.71,27.66479]
[1641715740507,21.86504403,140.82,140.75,27.66479]
[1641715740908,6.81766612,140.82,140.75,27.66479]
[1641715742908,50.10097791,140.84,140.75,27.66479]
[1641715743108,15.04737791,140.84,140.75,27.66479]
[1641715743309,48.39228889,140.85,140.75,27.66479]
[1641715743509,20.72749889,140.85,140.75,27.66479]
[1641715743708,24.72749889,140.85,140.75,27.66479]
[1641715743908,4.0,140.81,140.75,27.66479]
[1641715744108,5.68285256,140.78,140.75,25.54641686]
[1641715745612,5.68285256,140.78,140.71,27.66479]
[1641715747414,27.66479,140.79,140.71,27.66479]
[1641715749017,5.68161546,140.81,140.71,27.66479]
[1641715750217,9.68161546,140.81,140.71,27.66479]
[1641715750418,5.68161546,140.81,140.71,27.66479]
[1641715750617,9.68161546,140.81,140.71,27.66479]
[1641715751220,5.68161546,140.81,140.71,27.66479]
[1641715752220,20.72899337,140.81,140.71,27.66479]
[1641715752421,15.04737791,140.81,140.78,27.66479]
[1641715752922,15.04737791,140.86,140.78,27.66479]
[1641715753824,6.81476743,140.88,140.78,27.66479]
[1641715754423,6.81476743,140.88,140.83,27.66479]
[1641715760531,33.34237391,140.91,140.83,27.66479]
[1641715762334,5.67782937,140.9,140.83,27.66479]
[1641715766339,5.67823057,140.89,140.83,27.66479]
[1641715768142,5.67698067,140.92,140.83,27.66479]
[1641715768744,5.67698067,140.92,140.86,27.66479]
[1641715774155,45.82322528,140.98,140.87,7.09496612]
[1641715774356,45.82322528,140.98,140.91,4.0]
[1641715774554,31.7307,141.02,140.91,4.0]
[1641715774755,31.7307,141.02,140.92,5.772]
[1641715774954,14.99111084,141.02,141.01,55.32958]
[1641715775356,39.97629558,141.05,141.01,55.32958]
[1641715775956,39.97629558,141.05,141.03,7.08692109]
[1641715776155,31.7307,141.09,141.04,4.0]
[1641715776355,31.7307,141.09,141.06,4.0]
[1641715776557,100.41668551,141.13,141.06,4.0]
[1641715776957,9.53185211,141.11,141.08,4.0]
[1641715777156,9.53185211,141.11,141.1,4.0]
[1641715777358,9.53185211,141.11,141.09,7.0839089]
[1641715777556,7.7034459,141.11,141.1,4.0]
[1641715778158,100.41668551,141.21,141.09,7.0839089]
[1641715778357,100.41668551,141.21,141.1,1.77]
[1641715778560,27.66479,141.22,141.12,7.08240377]
[1641715779058,27.66479,141.22,141.16,27.66479]
[1641715779659,31.66479,141.22,141.16,27.66479]
[1641715779859,4.0,141.2,141.16,27.66479]
[1641715780058,4.0,141.21,141.14,27.66479]
[1641715780261,11.0861678,141.2,141.14,27.66479]
[1641715780457,4.0,141.2,141.14,27.66479]
[1641715782866,4.0,141.21,141.14,27.66479]
[1641715783367,40.41508234,141.22,141.14,27.66479]
[1641715783566,4.0,141.17,141.14,27.66479]
[1641715783867,11.08918191,141.15,141.05,1.77]
[1641715784067,4.0,141.13,141.01,4.0]
[1641715784267,4.0,141.13,141.0,4.0]
[1641715784467,4.0,141.13,140.99,69.9637]
[1641715784468,9.66842887,141.14,141.01,4.0]
[1641715784668,9.66842887,141.14,141.02,4.0]
[1641715784867,9.66842887,141.14,141.01,4.0]
[1641715785370,27.66479,141.1,141.02,27.66479]
[1641715787372,5.66870734,141.13,141.02,27.66479]
[1641715787572,12.75495389,141.17,141.02,27.66479]
[1641715787772,12.75495389,141.17,141.04,4.0]
[1641715787973,5.66727936,141.17,141.06,4.0]
[1641715788372,5.66727936,141.17,141.05,11.44169294]
[1641715789272,33.33206936,141.17,141.08,27.66479]
[1641715789672,33.33206936,141.17,141.08,34.79779]
[1641715791376,27.66479,141.17,141.08,38.79779]
[1641715791675,27.66479,141.19,141.08,38.79779]
[1641715792076,27.66479,141.19,141.09,4.0]
[1641715792576,27.66479,141.19,141.08,38.79779]
[1641715792776,27.66479,141.19,141.09,4.0]
[1641715793278,27.66479,141.19,141.11,27.66479]
[1641715793578,27.66479,141.19,141.11,33.60179]
[1641715795277,27.66479,141.19,141.11,27.66479]
[1641715795477,27.66479,141.19,141.08,33.3349735]
[1641715795778,4.0,141.17,141.07,7.08491268]
[1641715796382,4.0,141.18,141.07,7.08491268]
[1641715797381,68.38592085,141.19,141.07,34.74970268]
[1641715797580,5.66634085,141.19,141.07,46.55952984]
[1641715797783,6.79874573,141.21,141.11,4.0]
[1641715797983,6.79874573,141.21,141.11,12.743]
[1641715798182,6.79874573,141.21,141.11,8.743]
[1641715798382,12.46412776,141.21,141.11,8.743]
[1641715798781,5.66698008,141.17,141.11,8.743]
[1641715799785,14.96499986,141.17,141.1,27.66479]
[1641715800885,5.66780108,141.15,141.07,27.66479]
[1641715801086,9.66780108,141.15,141.04,7.08641888]
[1641715801285,5.66894586,141.12,141.04,7.08641888]
[1641715804887,5.66894586,141.12,141.05,2.68406503]
[1641715808192,15.02667321,141.14,141.05,11.98906503]
[1641715809195,2.32468998,141.16,141.06,2.68406503]
[1641715809597,27.66479,141.14,141.06,2.68406503]
[1641715810595,5.66777238,141.15,141.06,2.68406503]
[1641715810795,5.66777238,141.15,141.06,9.46506503]
[1641715811396,2.32643208,141.14,141.07,6.68406503]
[1641715811595,2.32643208,141.14,141.09,27.66479]
[1641715811795,2.32643208,141.14,141.09,34.67779]
[1641715812598,15.02667321,141.16,141.1,7.08340712]
[1641715812797,39.42240366,141.2,141.13,4.0]
[1641715812999,15.03686722,141.18,141.17,4.0]
[1641715813197,15.03686722,141.18,141.17,12.89]
[1641715813397,39.42240366,141.21,141.17,8.89]
[1641715813598,59.11162805,141.25,141.2,27.66479]
[1641715813800,59.11162805,141.25,141.2,36.67679]
[1641715814198,59.11162805,141.25,141.2,43.7549327]
[1641715814398,59.11162805,141.32,141.23,4.0]
[1641715814600,59.11162805,141.32,141.23,19.40689041]
[1641715814800,59.11162805,141.32,141.23,15.40689041]
[1641715814998,63.11162805,141.32,141.23,15.40689041]
[1641715815197,4.0,141.3,141.23,8.33]
[1641715815598,64.77262967,141.32,141.23,12.33]
[1641715815801,27.66479,141.33,141.23,12.33]
[1641715816098,27.66479,141.33,141.23,8.33]
[1641715817502,27.66479,141.33,141.25,27.66479]
[1641715817702,27.66479,141.33,141.25,35.88179]
[1641715817902,27.66479,141.35,141.25,35.88179]
[1641715818102,27.66479,141.35,141.25,42.95767891]
[1641715819304,37.648,141.38,141.25,42.95767891]
[1641715819703,37.648,141.38,141.28,27.66479]
[1641715819904,4.0,141.38,141.28,36.98379]
[1641715820102,4.0,141.37,141.28,36.98379]
[1641715820504,9.6596078,141.36,141.28,36.98379]
[1641715821604,27.66479,141.34,141.28,36.98379]
[1641715821802,4.0,141.29,141.25,27.66479]
[1641715822002,4.0,141.28,141.19,33.5294]
[1641715822203,13.59629445,141.29,141.17,7.07964602]
[1641715822404,13.59629445,141.29,141.17,11.07964602]
[1641715822605,13.59629445,141.29,141.17,7.07964602]
[1641715822803,13.59629445,141.29,141.17,11.07964602]
[1641715823003,13.59629445,141.29,141.2,7.0783932]
[1641715823603,27.66479,141.28,141.21,27.66479]
[1641715823804,31.66479,141.28,141.19,27.66479]
[1641715824003,9.66324259,141.27,141.15,65.203]
[1641715824205,9.66324259,141.27,141.14,7.0814007]
[1641715824406,5.66401811,141.25,141.14,7.0814007]
[1641715824805,5.66401811,141.25,141.15,4.0]
[1641715825007,27.66479,141.28,141.16,4.0]
[1641715825205,33.3308,141.31,141.19,7.07864373]
[1641715825408,33.3308,141.31,141.19,13.74664373]
[1641715825605,33.3308,141.31,141.24,27.66479]
[1641715825806,6.79313776,141.32,141.24,27.66479]
[1641715826107,6.79313776,141.32,141.24,36.82579]
[1641715827110,10.79313776,141.32,141.24,9.161]
[1641715827308,6.79313776,141.32,141.24,9.161]
[1641715827511,6.79313776,141.32,141.22,34.74193084]
[1641715827809,27.66479,141.31,141.22,34.74193084]
[1641715828210,6.79313776,141.32,141.22,34.74193084]
[1641715828509,40.42021579,141.36,141.22,47.25993084]
[1641715828708,40.42021579,141.36,141.22,43.25993084]
[1641715828709,44.42021579,141.36,141.22,43.25993084]
[1641715829211,4.0,141.34,141.22,43.25993084]
[1641715829608,4.0,141.34,141.25,27.66479]
[1641715831010,4.0,141.34,141.25,33.92879]
[1641715831612,4.0,141.33,141.25,6.264]
[1641715831813,17.34589438,141.33,141.22,27.66479]
[1641715832014,4.0,141.32,141.22,27.66479]
[1641715832213,9.66171143,141.31,141.22,27.66479]
[1641715832415,4.0,141.29,141.22,27.66479]
[1641715832616,4.0,141.27,141.22,27.66479]
[1641715832818,5.66273014,141.28,141.22,27.66479]
[1641715833216,13.87440211,141.31,141.22,27.66479]
[1641715833417,13.87440211,141.31,141.22,36.62979]
[1641715833615,27.66479,141.28,141.22,36.62979]
[1641715833817,31.66479,141.28,141.22,36.62979]
[1641715834016,27.66479,141.28,141.22,36.62979]
[1641715834416,42.66636074,141.28,141.22,27.66479]
[1641715834616,46.66636074,141.28,141.22,27.66479]
[1641715834817,4.0,141.24,141.22,27.66479]
[1641715835020,5.66411069,141.25,141.15,7.08064859]
[1641715835220,9.438,141.24,141.15,7.08064859]
[1641715835719,9.438,141.24,141.17,27.66479]
[1641715837723,33.32759053,141.28,141.17,35.55179]
[1641715838025,27.66479,141.28,141.18,7.07914484]
[1641715839023,27.66479,141.28,141.18,14.02414484]
[1641715839624,27.66479,141.28,141.18,6.945]
[1641715840024,9.66348677,141.26,141.17,27.66479]
[1641715840324,5.66348677,141.26,141.17,27.66479]
[1641715841128,33.60179,141.28,141.17,27.66479]
[1641715841326,27.66479,141.28,141.17,34.11079]
[1641715842927,9.66354687,141.26,141.15,27.66479]
[1641715843627,4.0,141.25,141.15,27.66479]
[1641715843828,27.66479,141.22,141.15,27.66479]
[1641715845228,35.05979,141.22,141.15,27.66479]
[1641715845429,4.0,141.21,141.12,27.66479]
[1641715845630,4.0,141.2,141.11,32.1479]
[1641715845829,35.05979,141.22,141.1,15.00784248]
[1641715846230,35.05979,141.22,141.1,22.95984248]
[1641715846429,27.66479,141.22,141.1,22.95984248]
[1641715847030,27.66479,141.22,141.1,7.952]
[1641715847229,5.66579525,141.2,141.1,7.952]
[1641715847430,18.69079525,141.2,141.09,27.66479]
[1641715847630,7.08666997,141.19,141.08,15.00784248]
[1641715847831,27.66479,141.13,141.08,15.00784248]
[1641715848632,27.66479,141.13,141.07,27.66479]
[1641715850334,27.66479,141.15,141.07,27.66479]
[1641715850534,5.66579525,141.2,141.08,4.0]
[1641715850735,15.00784248,141.21,141.09,11.083658]
[1641715850936,15.00784248,141.21,141.09,20.126658]
[1641715851536,33.9246,141.24,141.11,4.0]
[1641715851736,33.9246,141.24,141.12,4.0]
[1641715851936,33.9246,141.24,141.16,27.66479]
[1641715852136,22.09150048,141.25,141.16,34.61679]
[1641715852336,7.083658,141.25,141.16,34.61679]
[1641715852737,33.32849716,141.26,141.16,34.61679]
[1641715855142,27.66479,141.26,141.16,34.61679]
[1641715859250,27.66479,141.26,141.16,6.952]
[1641715859447,4.0,141.25,141.14,1.77]
[1641715859653,4.0,141.25,141.13,27.66479]
[1641715859848,27.66479,141.26,141.13,27.66479]
[1641715860048,27.66479,141.26,141.17,27.66479]
[1641715860250,2.31332148,141.24,141.17,35.59179]
[1641715860948,27.66479,141.26,141.17,35.59179]
[1641715861952,2.31455296,141.25,141.17,35.59179]
[1641715862754,20.67082479,141.27,141.17,35.59179]
[1641715863052,5.66298231,141.27,141.17,35.59179]
[1641715863252,27.66479,141.28,141.2,4.0]
[1641715863454,15.00784248,141.29,141.2,16.3123932]
[1641715863755,2.31512315,141.26,141.2,16.3123932]
[1641715863954,2.31512315,141.26,141.23,27.66479]
[1641715864152,2.31512315,141.26,141.23,34.95179]
[1641715864456,39.64749645,141.31,141.23,34.95179]
[1641715864661,17.32296563,141.32,141.23,34.95179]
[1641715866656,17.32296563,141.32,141.23,38.95179]
[1641715866855,6.31512315,141.32,141.23,34.95179]
[1641715867059,2.31512315,141.32,141.23,34.95179]
[1641715870161,2.31512315,141.32,141.26,27.66479]
[1641715870362,2.31512315,141.32,141.26,35.85079]
[1641715871862,5.66073678,141.33,141.26,8.186]
[1641715872063,4.0,141.32,141.23,34.74143001]
[1641715872263,5.66181549,141.3,141.21,27.66479]
[1641715873566,11.3237333,141.3,141.21,27.66479]
[1641715873766,5.66191781,141.3,141.21,27.66479]
[1641715873966,52.33332552,141.33,141.21,27.66479]
[1641715874167,52.33332552,141.33,141.24,27.66479]
[1641715874770,2.30853046,141.32,141.24,27.66479]
[1641715874967,5.66178434,141.3,141.24,27.66479]
[1641715875570,53.46531419,141.33,141.24,27.66479]
[1641715876169,31.66479,141.3,141.24,27.66479]
[1641715876370,33.32654371,141.3,141.24,27.66479]
[1641715877470,37.32654371,141.3,141.21,27.66479]
[1641715877670,33.32654371,141.3,141.21,27.66479]
[1641715879070,2.31195822,141.29,141.21,27.66479]
[1641715880271,33.32654371,141.3,141.21,27.66479]
[1641715880972,2.31936437,141.29,141.21,27.66479]
[1641715881173,17.32720685,141.29,141.21,27.66479]
[1641715882576,21.32720685,141.29,141.21,27.66479]
[1641715882875,4.0,141.26,141.18,48.91154248]
[1641715883078,10.948,141.26,141.18,15.00784248]
[1641715883275,12.61151003,141.26,141.18,15.00784248]
[1641715883575,12.61151003,141.26,141.17,15.00784248]
[1641715884275,29.98415437,141.25,141.15,55.87137039]
[1641715885077,4.0,141.23,141.15,28.20658039]
[1641715885281,4.0,141.21,141.15,28.20658039]
[1641715885477,5.66619021,141.19,141.15,28.20658039]
[1641715885678,5.66619021,141.19,141.15,17.69672702]
[1641715885879,16.75286018,141.19,141.16,2.68905372]
[1641715886080,9.66689473,141.18,141.16,2.68905372]
[1641715886278,55.32958,141.17,141.14,8.024e-05]
[1641715886879,55.32958,141.17,141.11,39.64749645]
[1641715887079,16.75040203,141.22,141.07,34.9354]
[1641715887279,16.75040203,141.22,141.07,45.1934]
[1641715887680,4.0,141.21,141.07,49.1934]
[1641715887880,4.0,141.21,141.07,43.4234]
[1641715888081,9.66595426,141.2,141.08,10.48778806]
[1641715888281,27.66479,141.16,141.08,10.48778806]
[1641715888480,33.98979,141.16,141.08,10.48778806]
[1641715888880,33.98979,141.16,141.07,34.9354]
[1641715889481,27.66479,141.16,141.07,34.9354]
[1641715890085,27.66479,141.18,141.07,38.9354]
[1641715890281,27.66479,141.18,141.07,43.0984]
[1641715890581,31.66479,141.18,141.07,43.0984]
[1641715890782,5.66707126,141.17,141.07,43.0984]
[1641715891280,5.66707126,141.17,141.07,34.9354]
[1641715891281,13.17507126,141.17,141.07,34.9354]
[1641715892284,13.17507126,141.17,141.07,62.60019]
[1641715892584,5.66707126,141.17,141.07,62.60019]
[1641715893584,27.66479,141.18,141.07,66.60019]
[1641715893788,27.66479,141.18,141.07,70.20819]
[1641715894586,27.66479,141.18,141.07,74.20819]
[1641715895188,5.66616216,141.19,141.1,4.0]
[1641715895387,5.66616216,141.19,141.1,13.212]
[1641715895686,5.66616216,141.19,141.1,9.212]
[1641715896087,5.66616216,141.19,141.1,13.212]
[1641715896287,5.66616216,141.19,141.11,27.66479]
[1641715896887,5.66616216,141.19,141.07,68.2708556]
[1641715897086,12.69016216,141.19,141.07,68.2708556]
[1641715897289,5.66672606,141.18,141.07,68.2708556]
[1641715898591,5.66672606,141.18,141.07,95.9356456]
[1641715898992,5.66672606,141.18,141.07,99.9356456]
[1641715899692,5.66672606,141.18,141.07,95.9356456]
[1641715900393,5.66672606,141.18,141.07,99.9356456]
[1641715900592,27.66479,141.17,141.07,95.9356456]
[1641715901295,33.33180573,141.17,141.07,95.9356456]
[1641715902695,33.33180573,141.17,141.07,90.26498]
[1641715903294,5.6678317,141.15,141.07,90.26498]
[1641715903494,5.6678317,141.15,141.07,55.32958]
[1641715906401,27.66479,141.17,141.07,55.32958]
[1641715906599,27.66479,141.17,141.07,61.64058]
[1641715907301,27.66479,141.17,141.07,65.64058]
[1641715907602,27.66479,141.17,141.07,61.64058]
[1641715907801,27.66479,141.17,141.07,65.64058]
[1641715908003,27.66479,141.17,141.08,9.67045096]
[1641715908301,27.66479,141.17,141.08,11.44045096]
[1641715908703,27.66479,141.17,141.08,7.44045096]
[1641715908902,27.66479,141.17,141.08,1.77]
[1641715909405,27.66479,141.17,141.07,55.32958]
[1641715909603,34.93379,141.17,141.07,55.32958]
[1641715910706,62.59858,141.17,141.07,55.32958]
[1641715912606,62.59858,141.17,141.08,10.51446965]
[1641715912805,27.66479,141.14,141.08,10.51446965]
[1641715913208,27.66479,141.17,141.08,10.51446965]
[1641715913405,5.66672606,141.18,141.08,19.64246965]
[1641715914807,27.66479,141.16,141.08,19.64246965]
[1641715916808,27.66479,141.16,141.11,15.07167389]
[1641715917909,15.07167389,141.19,141.11,15.07167389]
[1641715918309,15.07167389,141.2,141.11,23.76367389]
[1641715918909,15.07167389,141.2,141.11,51.42846389]
[1641715919210,15.07167389,141.2,141.12,15.07167389]
[1641715919611,53.53522055,141.21,141.12,25.58614354]
[1641715919811,5.66657168,141.18,141.12,25.58614354]
[1641715920812,5.66657168,141.18,141.1,22.15508101]
[1641715921012,15.07167389,141.19,141.1,22.15508101]
[1641715921215,15.07167389,141.19,141.1,27.85308101]
[1641715921612,48.40186634,141.21,141.12,15.07167389]
[1641715922313,4.0,141.2,141.12,15.07167389]
[1641715922513,5.66667146,141.18,141.11,15.07167389]
[1641715922914,27.66479,141.13,141.11,15.07167389]
[1641715923314,27.66479,141.13,141.09,25.58614354]
[1641715924114,27.66479,141.13,141.09,15.07167389]
[1641715924513,27.66479,141.15,141.09,15.07167389]
[1641715924514,33.56779,141.15,141.09,15.07167389]
[1641715924716,37.56779,141.15,141.09,15.07167389]
[1641715924915,27.66479,141.1,141.09,15.07167389]
[1641715925114,36.61679,141.1,141.09,15.07167389]
[1641715925914,36.61679,141.1,141.07,10.51446965]
[1641715926117,36.61679,141.1,141.06,15.07167389]
[1641715926316,27.66479,141.1,141.06,15.07167389]
[1641715926915,5.66917405,141.12,141.06,15.07167389]
[1641715927115,5.66917405,141.12,141.05,22.84267389]
[1641715928017,5.66917405,141.12,141.06,2.69170478]
[1641715928619,6.80156252,141.15,141.06,17.76337867]
[1641715929019,6.80156252,141.15,141.09,27.66479]
[1641715929218,6.80156252,141.15,141.09,34.44879]
[1641715929420,6.80156252,141.15,141.09,49.52046389]
[1641715930017,5.66679812,141.18,141.09,49.52046389]
[1641715930218,5.66679812,141.18,141.1,28.27784832]
[1641715930819,5.66679812,141.18,141.11,15.07167389]
[1641715934119,5.66760059,141.16,141.1,28.27784832]
[1641715934822,5.66760059,141.16,141.1,10.51446965]
[1641715935122,33.33239059,141.16,141.09,2.69170478]
[1641715936128,5.66760059,141.16,141.09,2.69170478]
[1641715936332,56.49899727,141.2,141.09,17.76337867]
[1641715936531,48.34007389,141.2,141.09,30.53837867]
[1641715936729,48.34007389,141.2,141.11,7.08265458]
[1641715937130,48.34007389,141.2,141.13,27.66479]
[1641715937131,15.07167389,141.2,141.13,27.66479]
[1641715937430,8.1575712,141.22,141.13,50.24946389]
[1641715938231,8.1575712,141.22,141.14,2.69170478]
[1641715939632,2.32288667,141.21,141.14,2.69170478]
[1641715940331,8.1575712,141.22,141.14,2.69170478]
[1641715942933,27.66479,141.23,141.14,9.77310548]
[1641715943135,27.66479,141.23,141.16,27.66479]
[1641715943332,27.66479,141.23,141.16,33.89379]
[1641715944134,27.66479,141.23,141.16,6.229]
[1641715947242,27.66479,141.23,141.16,33.89379]
[1641715949843,33.32886468,141.25,141.16,33.89379]
[1641715950242,2.31926591,141.24,141.16,33.89379]
[1641715951244,4.0,141.23,141.16,33.89379]
[1641715951446,27.66479,141.21,141.16,6.229]
[1641715951644,27.66479,141.21,141.13,63.22599]
[1641715952246,27.66479,141.21,141.14,2.68341037]
[1641715954647,27.66479,141.21,141.13,63.22599]
[1641715955450,27.66479,141.21,141.14,2.68424767]
[1641715959457,27.66479,141.17,141.14,2.68424767]
[1641715959656,35.04779,141.17,141.14,2.68424767]
[1641715960858,35.04779,141.17,141.12,15.07167389]
[1641715961459,7.383,141.17,141.11,17.75592156]
[1641715961660,5.66585783,141.2,141.11,17.75592156]
[1641715962062,5.66591584,141.2,141.11,17.75592156]
[1641715962365,2.3259153,141.19,141.11,17.75592156]
[1641715963765,5.66592869,141.2,141.11,17.75592156]
[1641715964768,5.66575241,141.2,141.13,15.07167389]
[1641715965369,5.66575241,141.2,141.14,15.07167389]
[1641715966072,5.66581951,141.2,141.14,15.07167389]
[1641715967273,5.66710139,141.17,141.14,15.07167389]
[1641715967473,4.0,141.15,141.12,15.07167389]
[1641715967674,9.66830689,141.14,141.12,15.07167389]
[1641715967874,18.80130689,141.14,141.12,15.07167389]
[1641715968277,13.133,141.14,141.12,9.40269568]
[1641715968474,19.93494364,141.14,141.12,9.40269568]
[1641715968875,19.93494364,141.14,141.09,9.40269568]
[1641715969076,15.93494364,141.14,141.09,9.40269568]
[1641715969475,19.93494364,141.14,141.09,9.40269568]
[1641715970679,19.93494364,141.14,141.05,2.68424767]
[1641715970879,15.93494364,141.14,141.05,2.68424767]
[1641715971279,9.133,141.14,141.05,2.68424767]
[1641715971480,27.66479,141.15,141.05,13.20186351]
[1641715971679,27.66479,141.15,141.08,27.66479]
[1641715972279,27.66479,141.15,141.09,2.68424767]
[1641715973979,33.33257077,141.15,141.09,2.68424767]
[1641715974180,5.66778077,141.15,141.09,2.68424767]
[1641715974382,38.75171109,141.19,141.09,2.68424767]
[1641715974582,5.66694712,141.17,141.09,2.68424767]
[1641715974782,14.95494712,141.17,141.09,2.68424767]
[1641715975082,18.95494712,141.17,141.09,2.68424767]
[1641715975686,27.66479,141.14,141.09,2.68424767]
[1641715976185,5.66694712,141.17,141.09,2.68424767]
[1641715976986,27.66479,141.19,141.09,2.68424767]
[1641715977590,27.66479,141.19,141.09,13.20186351]
[1641715979292,27.66479,141.19,141.09,2.68424767]
[1641715980194,27.66479,141.19,141.11,4.0]
[1641715980593,33.4133,141.23,141.12,2.68424767]
[1641715980793,33.4133,141.23,141.12,9.92424767]
[1641715981595,2.32463133,141.22,141.13,2.68424767]
[1641715981795,2.32463133,141.22,141.14,27.66479]
[1641715982996,2.32463133,141.22,141.15,2.68424767]
[1641715983396,2.32463133,141.22,141.15,11.99024767]
[1641715983597,27.66479,141.23,141.15,11.99024767]
[1641715983796,5.66422785,141.24,141.15,11.99024767]
[1641715984297,5.66422785,141.24,141.16,2.68424767]
[1641715986801,2.32310639,141.23,141.16,2.68424767]
[1641715987404,5.66422785,141.24,141.16,2.68424767]
[1641715988607,5.66422785,141.24,141.15,2.68424767]
[1641715990008,5.66513046,141.22,141.15,2.68424767]
[1641715990206,12.30013046,141.22,141.15,2.68424767]
[1641715992409,6.635,141.22,141.15,2.68424767]
[1641715992609,50.30331221,141.25,141.15,2.68424767]
[1641715993510,2.32151824,141.24,141.15,2.68424767]
[1641715995514,34.46165421,141.25,141.15,13.17895459]
[1641715995815,34.46165421,141.25,141.17,27.66479]
[1641715996416,34.46165421,141.25,141.18,2.68424767]
[1641715997315,34.46165421,141.25,141.17,27.66479]
[1641715998118,43.30565421,141.25,141.18,2.68355779]
[1641715998920,2.32074743,141.24,141.17,27.66479]
[1641715999117,2.32074743,141.24,141.14,74.84756305]
[1641715999318,6.32074743,141.24,141.14,74.84756305]
[1641715999618,9.66544954,141.21,141.14,42.67846305]
[1641715999918,31.66479,141.2,141.15,2.68393895]
[1641716000119,5.66640058,141.19,141.15,2.68393895]
[1641716000319,4.0,141.18,141.15,2.09323895]
[1641716000518,5.66734617,141.16,141.14,27.66479]
[1641716000919,6.79936093,141.19,141.14,27.66479]
[1641716001621,10.79936093,141.19,141.14,27.66479]
[1641716001820,10.79936093,141.19,141.1,42.67846305]
[1641716002319,5.66716336,141.17,141.1,42.67846305]
[1641716002520,5.66716336,141.17,141.1,27.66479]
[1641716003621,9.66716336,141.17,141.1,27.66479]
[1641716003822,37.33195336,141.17,141.08,25.51639541]
[1641716005021,33.33195336,141.17,141.08,25.51639541]
[1641716005222,6.79936093,141.19,141.08,25.51639541]
[1641716005422,6.79936093,141.19,141.08,34.42939541]
[1641716005822,6.79936093,141.19,141.11,27.66479]
[1641716006022,6.79936093,141.19,141.11,35.22379]
[1641716006323,6.79936093,141.19,141.11,50.23746305]
[1641716009732,6.79936093,141.19,141.11,35.22379]
[1641716009929,6.79936093,141.19,141.11,27.66479]
[1641716011235,10.79936093,141.19,141.1,15.01367305]
[1641716011634,5.66727773,141.17,141.1,15.01367305]
[1641716011834,27.66479,141.15,141.07,115.1209595]